Cogmind - Beta 13 @@@ ROGUE MODE // 2024.07.17 @ 16:47:17 Player: Sionnis Result: Destroyed by 99-TNT with 99-TNT's Nukerbomber Performance ------------- Evolutions (1) 500 Regions Visited (5) 1000 Robots Destroyed (38) 190 Value Destroyed (903) 903 Prototype IDs (32) 640 Alien Tech Used (0) 0 Bonus (350) 350 TOTAL SCORE: 3583 Bonus ------- Follower Combat Kills 50 Aligned with FarCom 300 Cogmind --------- Core Integrity 0/400 Matter 295/300 Energy 280/280 System Corruption 0% Temperature Cool (0) Movement Core (500) Ox9 Location -8/Mines Parts ------- > --- POWER (1) -------- Heavy Ion Engine > --- PROPULSION (2) --- (None) > --- UTILITY (2) ------ Large Storage Unit > --- WEAPON (4) ------- (None) > --- INVENTORY (15) --- Heavy Ion Engine Light Treads Light Treads Light Treads Light Treads Large Matter Pod (150) Transport Network Coupler Light Armor Plating Assault Rifle Assault Rifle Rocket Launcher Rocket Launcher Heavy Hammer Peak State ------------ > --- POWER ------------ Heavy Ion Engine > --- PROPULSION ------- Light Treads Improved Treads > --- UTILITY ---------- Large Storage Unit Hardened Light Armor Plating > --- WEAPON ----------- Assault Rifle Assault Rifle Light Assault Rifle Light Assault Rifle > --- INVENTORY -------- Heavy Ion Engine Light Treads Light Treads Light Treads Light Treads Large Matter Pod Transport Network Coupler Light Armor Plating Assault Rifle Assault Rifle Rocket Launcher Rocket Launcher Datajack Datajack Heavy Hammer [Rating: 15] Favorites ----------- Power Heavy Ion Engine Engine Heavy Ion Engine Power Core Light Nuclear Core Propulsion Light Treads Treads Light Treads Utility Large Storage Unit Storage Large Storage Unit Processor Signal Interpreter Protection Hardened Light Armor Plating Weapon Assault Rifle Ballistic Gun Assault Rifle Special Melee Weapon Datajack Build | -11 -10 -9 -9 -9 -8 ------- Run | Yrd Mat Mat Min Exi Min Slots Evolved 2 | . . 2 . . . Power . | . . . . . . Propulsion . | . . . . . . Utility . | . . . . . . Weapon 2 | . . 2 . . . Parts Attached 28 | 6 6 13 1 . 2 Power 4 | 1 1 2 . . . Engine 3 | 1 1 1 . . . Core 1 | . . 1 . . . Reactor . | . . . . . . Propulsion 6 | 2 . 4 . . . Treads 6 | 2 . 4 . . . Leg . | . . . . . . Wheel . | . . . . . . Hover . | . . . . . . Flight . | . . . . . . Utility 5 | 1 3 1 . . . Device . | . . . . . . Storage 3 | 1 2 . . . . Processor 1 | . 1 . . . . Hackware . | . . . . . . Protection 1 | . . 1 . . . Artifact . | . . . . . . Weapon 13 | 2 2 6 1 . 2 Energy Gun . | . . . . . . Energy Cannon . | . . . . . . Ballistic Gun 11 | 2 2 6 1 . . Ballistic Cannon . | . . . . . . Launcher . | . . . . . . Special Weapon . | . . . . . . Impact Weapon . | . . . . . . Slashing Weapon . | . . . . . . Piercing Weapon . | . . . . . . Special Melee Weapon 2 | . . . . . 2 Unidentified Prototypes 1 | . . 1 . . . Parts Lost 11 | . 1 1 . . 9 Power 2 | . 1 1 . . . Propulsion 2 | . . . . . 2 Utility 1 | . . . . . 1 Weapon 6 | . . . . . 6 Highest Loss Streak 9 | . 1 1 . . 9 To Critical Strikes . | . . . . . . Average Slot Usage (%) 99 | . 97 100 99 100 88 Engine 11 | . 13 10 11 11 11 Treads 23 | . 28 22 22 22 18 Storage 11 | . 14 11 11 11 11 Processor 4 | . 12 . . . . Protection 7 | . . 10 11 11 11 Ballistic Gun 38 | . 28 44 43 44 36 Naked Turns . | . . . . . . Heaviest Build 40 | 10 27 40 40 40 40 Greatest Support 43 | 40 40 43 43 43 43 Greatest Overweight (x) . | . . . . . . Average Overweight (x) . | . . . . . . Largest Inventory Capacity 15 | 8 15 15 15 15 15 Average Capacity 13 | 6 12 15 15 15 15 Most Carried 15 | 3 12 15 15 15 15 Average Carried 12 | 1 7 14 15 15 14 Final Capacity 15 | 8 15 15 15 15 15 Final Carried 15 | 3 12 15 15 15 13 Class Distribution -------------------- 65% | Tank 34% | Mutant Dominant Class ---------------- Mutant | -10/Materials Tank | -9/Materials Tank | -9/Mines Tank | -9/Exiles Tank | -8/Mines Resources | -11 -10 -9 -9 -9 -8 ----------- Run | Yrd Mat Mat Min Exi Min Matter Collected 1151 | 210 437 404 100 . . Remotely . | . . . . . . Salvage Created 1340 | . 499 651 190 . . Parts 90 | . 29 47 14 . . Haulers Intercepted 4 | . 1 3 . . . Recyclers Shooed 2 | . 2 . . . . Parts Field Recycled . | . . . . . . Retrieved Matter . | . . . . . . Parts Self-Destructed . | . . . . . . Prevented . | . . . . . . Kills | -11 -10 -9 -9 -9 -8 ------- Run | Yrd Mat Mat Min Exi Min Combat Hostiles Destroyed 25 | . 11 8 6 . . Guns 25 | . 11 8 6 . . Classes Destroyed 9 | . 6 2 1 . . Worker 2 | . . 2 . . . Hauler 4 | . 1 3 . . . Recycler 1 | . 1 . . . . Operator 1 | . 1 . . . . Watcher 5 | . 2 3 . . . Swarmer 7 | . 5 . 2 . . Grunt 12 | . 6 4 2 . . Duelist 2 | . . . 2 . . Sentry 4 | . . 4 . . . Best Kill Streak 3 | . 3 3 3 . . Combat Bots Only 3 | . 3 2 3 . . Max Kills in Single Turn 2 | . 1 2 1 . . Gunslinging . | . . . . . . Exploded . | . . . . . . Melee . | . . . . . . Uniques/NPCs Destroyed . | . . . . . . Combat | -11 -10 -9 -9 -9 -8 -------- Run | Yrd Mat Mat Min Exi Min Hostile Shots Fired 119 | . 69 24 9 1 16 Missed 33 | . 26 5 2 . . Damage Taken 2029 | . 430 285 135 19 1160 Core 526 | . 54 15 76 . 381 Absorbed by Shields . | . . . . . . Core Remaining (%) 89 | 100 78 . . . . Volleys Fired 81 | . 46 24 8 2 1 Largest 4 | . 2 4 4 4 1 Hottest 80 | . 40 80 80 80 20 Shots Fired 229 | . 92 96 32 8 1 Gun 229 | . 92 96 32 8 1 Cannon . | . . . . . . Launcher . | . . . . . . Special . | . . . . . . Kinetic 229 | . 92 96 32 8 1 Thermal . | . . . . . . Explosive . | . . . . . . Electromagnetic . | . . . . . . Robot Hit Streak 14 | . 10 13 14 . 3 Robot Miss Streak 7 | . 7 3 2 . . Penetration Max . | . . . . . . Secondary Targets . | . . . . . . Shots Hit Robots 135 | . 52 60 21 . 2 Core Hits 68 | . 23 33 11 . 1 Critical Kills . | . . . . . . Critical Parts Destroyed 1 | . . 1 . . . Critical Strikes 1 | . . 1 . . . Destroy 1 | . . 1 . . . Melee Attacks 1 | . . . . . 1 Impact . | . . . . . . Slashing . | . . . . . . Piercing . | . . . . . . Sneak Attacks . | . . . . . . Combat Hostiles . | . . . . . . Follow-up Attacks . | . . . . . . Damage Inflicted 1693 | . 720 696 269 . 8 Guns 1693 | . 720 696 269 . 8 Cannons . | . . . . . . Explosions . | . . . . . . Melee . | . . . . . . Ramming . | . . . . . . Kinetic 1693 | . 720 696 269 . 8 Thermal . | . . . . . . Explosive . | . . . . . . Electromagnetic . | . . . . . . Impact . | . . . . . . Slashing . | . . . . . . Piercing . | . . . . . . Highest Corruption . | . . . . . . Average Corruption . | . . . . . . Corruption Purged . | . . . . . . Corruption Blocked . | . . . . . . Overload Shots . | . . . . . . Overflow Damage . | . . . . . . Projectiles . | . . . . . . Explosions . | . . . . . . Melee . | . . . . . . Knockbacks . | . . . . . . Impact . | . . . . . . Kinetic . | . . . . . . Secondary . | . . . . . . Self-Inflicted Damage . | . . . . . . Shots . | . . . . . . Rammed . | . . . . . . Targets Rammed . | . . . . . . Kicked . | . . . . . . Crushed . | . . . . . . Highest Temperature 108 | . 3 108 54 54 . Average Temperature 29 | . 3 32 25 28 . Received Heat Transfer 279 | . 141 126 12 . . Siege Activations . | . . . . . . Robots Corrupted . | . . . . . . Combat Hostiles . | . . . . . . Parts Fried . | . . . . . . Impact Corruptions . | . . . . . . Robots Melted . | . . . . . . Combat Hostiles . | . . . . . . Parts Melted . | . . . . . . Heat Transferred . | . . . . . . Parts Sabotaged . | . . . . . . Parts Stolen . | . . . . . . Parts Stripped . | . . . . . . Power Chain Reactions . | . . . . . . Alert | -11 -10 -9 -9 -9 -8 ------- Run | Yrd Mat Mat Min Exi Min Peak Influence 306 | . 213 306 236 . . Initial 89 | . . 89 88 . . Average 128 | . 92 168 157 . . Maximum Alert Level 1 | . 1 1 1 . . Low Security (%) 73 | 100 81 68 62 . 100 Level 1 26 | . 18 31 37 . . Level 2 . | . . . . . . Level 3 . | . . . . . . Level 4 . | . . . . . . Level 5 . | . . . . . . High Security . | . . . . . . Max Security . | . . . . . . Squads Dispatched 3 | . 2 1 . . . Investigation 2 | . 2 . . . . Extermination . | . . . . . . Reinforcement 1 | . . 1 . . . Assault . | . . . . . . Garrison . | . . . . . . Intercept . | . . . . . . Searches Triggered . | . . . . . . Construction Impeded . | . . . . . . Haulers Reinforced . | . . . . . . Active Scanning Responses . | . . . . . . Cargo Convoy Interrupts . | . . . . . . Stealth | -11 -10 -9 -9 -9 -8 --------- Run | Yrd Mat Mat Min Exi Min Distress Signals . | . . . . . . Communications Jammed . | . . . . . . Distress Signals . | . . . . . . Times Spotted 42 | . 16 12 10 3 1 Peak Tracking Total 9 | . 4 3 4 9 1 Tactical Retreats 1 | . . . 1 . . Traps | -11 -10 -9 -9 -9 -8 ------- Run | Yrd Mat Mat Min Exi Min Traps Triggered 1 | . 1 . . . . Indirectly . | . . . . . . Trap Hack Attempts . | . . . . . . Triggered . | . . . . . . Disarmed . | . . . . . . Reprogrammed . | . . . . . . Reused . | . . . . . . Traps Extracted . | . . . . . . Installed . | . . . . . . Triggered . | . . . . . . Machines | -11 -10 -9 -9 -9 -8 ---------- Run | Yrd Mat Mat Min Exi Min Machines Disabled 1 | . . . . 1 . Max in Single Turn 1 | . . . . 1 . Machines Repaired . | . . . . . . Machines Dismantled . | . . . . . . Machines Sabotaged . | . . . . . . Overloaded Fab Kills . | . . . . . . Hacking | -11 -10 -9 -9 -9 -8 --------- Run | Yrd Mat Mat Min Exi Min Machines Accessed 5 | . 3 . . 2 . Terminals 3 | . 3 . . . . Fabricators . | . . . . . . Repair Stations . | . . . . . . Recycling Units . | . . . . . . Scanalyzers . | . . . . . . Garrison Access . | . . . . . . Total Hacks 16 | . 14 . . 2 . Successful 8 | . 6 . . 2 . Failed 8 | . 8 . . . . Catastrophic 1 | . 1 . . . . Database Lockouts . | . . . . . . Manual 10 | . 9 . . 1 . Terminals 14 | . 14 . . . . Fabricators . | . . . . . . Repair Stations . | . . . . . . Recycling Units . | . . . . . . Scanalyzers . | . . . . . . Garrison Access . | . . . . . . Terminal Hacks 7 | . 5 . . 2 . Record 1 | . . . . 1 . Robot Analysis 2 | . 2 . . . . Prototype ID Bank 1 | . 1 . . . . Hauler Manifests 1 | . 1 . . . . Registered Prototypes 1 | . 1 . . . . Derelict Proto ID Bank 1 | . . . . 1 . Fabricator Hacks . | . . . . . . Repair Station Hacks . | . . . . . . Recycling Unit Hacks . | . . . . . . Scanalyzer . | . . . . . . Garrison Access Hacks . | . . . . . . Unauthorized Hacks 1 | . 1 . . . . Terminals 1 | . 1 . . . . Botnet 1 | . 1 . . . . Fabricators . | . . . . . . Repair Stations . | . . . . . . Recycling Units . | . . . . . . Scanalyzers . | . . . . . . Garrison Access . | . . . . . . Data Cores Recovered 1 | . 1 . . . . Used 1 | . 1 . . . . Hacking Detections 3 | . 3 . . . . Full Trace Events 1 | . 1 . . . . Feedback Events . | . . . . . . Feedback Blocked . | . . . . . . Robot Schematics Acquired . | . . . . . . Robots Built . | . . . . . . Authchips . | . . . . . . Time . | . . . . . . Total Robot Build Rating . | . . . . . . Part Schematics Acquired . | . . . . . . Parts Built . | . . . . . . Authchips . | . . . . . . Time . | . . . . . . Total Part Build Rating . | . . . . . . Parts Repaired . | . . . . . . Time . | . . . . . . Parts Recycled . | . . . . . . Recycled Matter . | . . . . . . Retrieved Matter . | . . . . . . Retrieved Components . | . . . . . . Parts Scanalyzed . | . . . . . . Part Schematics Acquired . | . . . . . . Parts Damaged . | . . . . . . Bothacking | -11 -10 -9 -9 -9 -8 ------------ Run | Yrd Mat Mat Min Exi Min Used RIF Installer . | . . . . . . Robots Hacked 1 | . . . . . 1 Non-combat . | . . . . . . Combat 1 | . . . . . 1 Robot Hacks Applied 1 | . . . . . 1 parse_system 1 | . . . . . 1 Relay Couplers Released . | . . . . . . Fabnet Peak Effective % . | . . . . . . Robots Rewired . | . . . . . . Allies Hacked . | . . . . . . Hacks Repelled . | . . . . . . Allies | -11 -10 -9 -9 -9 -8 -------- Run | Yrd Mat Mat Min Exi Min Total Allies 1 | . . . 1 . . Largest Group 1 | . . . 1 . . Highest-Rated Group 31 | . . . 31 . . Highest-Rated Ally 31 | . . . 31 . . Total Orders . | . . . . . . Ally Attacks 4 | . . . 4 . . Total Damage 63 | . . . 63 . . Kills 2 | . . . 2 . . Allies Corrupted . | . . . . . . Allies Melted . | . . . . . . Intel | -11 -10 -9 -9 -9 -8 ------- Run | Yrd Mat Mat Min Exi Min Robot Analysis Total 2 | . 2 . . . . Derelict Logs Recovered . | . . . . . . Drone Launches . | . . . . . . Drone Recoveries . | . . . . . . Exploration | -11 -10 -9 -9 -9 -8 ------------- Run | Yrd Mat Mat Min Exi Min Turns Passed 2264 | 77 714 628 474 345 26 Spaces Moved 1170 | 42 332 300 273 212 11 Core 3 | 3 . . . . . Treads 1167 | 39 332 300 273 212 11 Legs . | . . . . . . Wheels . | . . . . . . Hover . | . . . . . . Flight . | . . . . . . Fastest Speed 50 | 50 160 160 160 160 160 Average Speed 159 | 152 160 160 160 160 160 Slowest Speed 160 | 160 160 160 160 160 160 Overloaded Moves . | . . . . . . Propulsion Burnouts . | . . . . . . Robots Hopped . | . . . . . . Cave-ins Triggered . | . . . . . . Exploration Rate (%) 38 | 5 56 37 67 60 7 Regions Visited 5 Branch Regions 3 Pre-discovered Areas 1 | . . . . 1 . Known Exits Taken 1 | . 1 . . . . Unknown Exits Taken 4 | 1 . 1 1 1 . Scrap Searched 1 | . . . 1 . . Spaces Dug . | . . . . . . Terrain Destroyed . | . . . . . . Melee . | . . . . . . Projectile . | . . . . . . AOE . | . . . . . . Terrain Rammed . | . . . . . . Walls Destroyed . | . . . . . . Machines Disabled . | . . . . . . Actions | -11 -10 -9 -9 -9 -8 --------- Run | Yrd Mat Mat Min Exi Min Total 1402 | 52 425 403 291 213 18 Wait 78 | 2 29 34 10 . 3 Move 1165 | 41 331 299 272 211 11 Hop . | . . . . . . Pick Up 25 | 3 9 13 . . . Fast Attach 15 | 6 3 5 1 . . Attach 5 | . 1 2 . . 2 Detach 1 | . 1 . . . . Swap 9 | . 2 7 . . . Drop 22 | . 3 19 . . . Fire 81 | . 46 24 8 2 1 Melee 1 | . . . . . 1 Ram . | . . . . . . Kick . | . . . . . . Crush . | . . . . . . Escape Stasis . | . . . . . . Rewire . | . . . . . . Trap . | . . . . . . Miscellaneous . | . . . . . . Route ------- -11/Scrapyard -10/Materials (discovered 3 exits: *Mat x2 / *Min) -9/Materials (discovered 2 exits: [*Mat] / [*Min]) -9/Mines (discovered 3 exits: [*Mat] / *Exi / [*Zio]) -9/Exiles -8/Mines History --------- Turn | Location | Event 4 | -11/Scrapyard | Discovered new exit (range 15) 78 | -11/Scrapyard | Entered Materials 216 | -10/Materials | Discovered new exit (range 14) 262 | -10/Materials | Identified exit to Materials 316 | -10/Materials | Build established: Mutant 433 | -10/Materials | Discovered new exit (range 5) 438 | -10/Materials | Discovered exit to Materials (range 16) 438 | -10/Materials | Identified exit to Mines 792 | -10/Materials | Entered another Materials area 792 | -9/Materials | Evolved 2 slots: Weapon x2 1104 | -9/Materials | Build established: Tank 1155 | -9/Materials | Discovered new exit (range 5) 1406 | -9/Materials | Discovered new exit (range 10) 1420 | -9/Materials | Entered Mines 1448 | -9/Mines | Received a Rocket Launcher from a helpful Derelict 1511 | -9/Mines | Received a Mining Laser from a helpful Derelict 1668 | -9/Mines | Discovered new exit (range 3) 1671 | -9/Mines | A Derelict revealed a hidden shortcut to a safe place 1887 | -9/Mines | Deemed a non-threat by the Exiles lab entrance 1887 | -9/Mines | Discovered new exit (range 5) 1894 | -9/Mines | Entered Exiles 1933 | -9/Exiles | Met 8R-AWN 1962 | -9/Exiles | Met EX-HEX 2006 | -9/Exiles | Met EX-BIN 2024 | -9/Exiles | Aligned with FarCom system 2026 | -9/Exiles | Given EX-Vault access code 2062 | -9/Exiles | Opened EX-Vault 2109 | -9/Exiles | Warned to stay clear of 0b10 Research branches 2155 | -9/Exiles | Met EX-DEC 2166 | -9/Exiles | Learned location of Zion (-7) 2198 | -9/Exiles | Attacked by the Exiles 2226 | -9/Exiles | Discovered new exit (range 10) 2239 | -9/Exiles | Entered Mines 2259 | -8/Mines | 99-TNT came to Exiles' defense 2262 | -8/Mines | Core integrity fell below 50% 2264 | -8/Mines | Core integrity fell below 20% 2265 | -8/Mines | Destroyed by 99-TNT with 99-TNT's Nukerbomber Last Messages --------------- Hrd. Light Armor Plating destroyed. Imp. Treads destroyed. Assault Rifle destroyed. K-01 Serf destroyed. The unstable cave ceiling collapses. Datajack destroyed. Assault Rifle destroyed. The unstable cave ceiling collapses. Jacked 99-TNT... >>parse_system Reading system data... New IDs: Hvy. Antimatter Reactor Exp. Cooling System Exp. Weapon Shielding Exp. Shock Absorption System Exp. Matter Compressor 99-TNT's Nukerbomber The unstable cave ceiling collapses. Datajack destroyed. Map ----- +----------------------------------------------------+ | ??????????????????????????????????????????? | | ??????????????????????????????????????????? | | ??????????????????????????????????????????? | | ??????????????????????????????????????????? | | ??????????????????????????????????????????? | | ??????????????????????????????????????????? | | ??????????????????????????????????????????? | | ??????????????????????????????????????????? | | ??????????????????????????????????????????? | | ??????????????????????????????????????????? | | ??????????????????????????????????????????? | | ??????????????##########??????????????????? | | ??????????????# #??????????????????? | | ??????????????# #??????????????????? | | ??????????????# #??????????????????? | | ??????????????# #??????????????????? | | ??????????????# """#??????????????????? | | ??????????????# """#??????????????????? | | ??????????????# """#??????????????????? | | ??????????????# #??????????????????? | | ??????????????### ######??????????????????? | | ??????????????## ##???????????????????? | | ???????????#### # ##??????????????????? | | ???????????# #??????????????????? | | ???????????# # ## g #???????????? | | ?????????????# @ d #???????????? | | ?????????????# ## #????????????? | | ?????????????# # #??????????????????? | | ?????????????## ##??????????????????? | | ??????????????## t ##???????????????????? | | ???????????????### ###????????????????????? | | ?????????????????# #??????????????????????? | | ?????????????????# ??????????????????????? | | ?????????????????###??????????????????????? | | ??????????????????????????????????????????? | | ??????????????????????????????????????????? | | ??????????????????????????????????????????? | | ??????????????????????????????????????????? | | ??????????????????????????????????????????? | | ??????????????????????????????????????????? | | ??????????????????????????????????????????? | | ??????????????????????????????????????????? | | ??????????????????????????????????????????? | | ??????????????????????????????????????????? | | | | | | | | | | | | | +----------------------------------------------------+ Best States ------------- Heat Dissipation 28 Energy Generation 14 Energy Capacity 280 Matter Stores 300 Matter Capacity 300 Sight Range 16 Terrain Scan Density 10 Armor Coverage 150 Evasion (%) 40 Recoil Reduction 2 Item Schematics ----------------- None Robot Schematics ------------------ None Fabricated ------------ Nothing Alien Tech Used ----------------- None Achievements -------------- None Challenges ------------ None Game ------ Seed StasisRemoteRay Manual? 1 Play Time 00:11:58 Cumulative 433.6 hours Start 2024.07.17 @ 16:35:44 End 2024.07.17 @ 16:47:17 Sessions 1 Manual Loads 0 Difficulty Rogue Special Mode None Game No. 248 Rogue 248 Adventurer 0 Explorer 0 Win Type - Total 29 Types 18/2/2/3/1/1/1/1/0 Lore% 82 Gallery% 93 Achievement% 95 Wizard Run 0 Options --------- Layout 1 ASCII 0 Keyboard 0 Movement Numpad Keybinds 0 Fullscreen 1 Font 24/Smallcaps Map View 50x35 Zoom Use 0% Tactical HUD 1 Map Filters NONE Filters NONE Steam 1 RUN: 2e823695-f4e6-43fc-962e-3acc6deef9c7